bitfinex/quotes_ETHUSD_20250813
["timestamp","ask_amount","ask_price","bid_price","bid_amount"]
[1755056968954,1.1404,4629.0,4628.9,5.178]
[1755056969555,1.1404,4629.0,4628.9,8.532]
[1755056970391,1.1665,4629.0,4628.9,8.532]
[1755056970852,1.28315,4629.0,4628.9,8.532]
[1755056974085,1.28315,4629.0,4628.9,5.178]
[1755056974272,1.28315,4629.0,4628.9,8.532]
[1755056977794,1.28315,4629.0,4628.9,5.178]
[1755056977983,1.28315,4629.0,4628.9,8.532]
[1755056978370,0.80945,4629.0,4628.9,8.532]
[1755056979564,1.28315,4629.0,4628.9,8.532]
[1755056979764,1.28315,4629.0,4628.9,5.178]
[1755056980164,1.28315,4629.0,4628.9,8.532]
[1755056980595,1.28315,4629.0,4628.8,0.001]
[1755056980889,0.108,4629.0,4628.9,5.179]
[1755056981469,1.1715,4629.0,4628.9,5.179]
[1755056982359,1.1715,4629.0,4628.9,3.354]
[1755056982555,1.1715,4629.0,4628.4,0.001]
[1755056982760,0.108,4628.5,4628.4,0.001]
[1755056983359,0.6978,4628.5,4628.4,0.001]
[1755056983576,1.1715,4628.5,4628.4,0.001]
[1755056983806,0.5898,4629.4,4628.4,3.355]
[1755056984107,0.108,4628.5,4628.4,3.355]
[1755056985086,0.108,4628.5,4628.4,3.6112]
[1755056985394,0.108,4628.5,4628.4,8.7902]
[1755056985709,0.108,4628.5,4628.4,8.534]
[1755056987293,0.108,4628.5,4628.4,8.7902]
[1755056988070,0.108,4628.5,4628.4,9.3402]
[1755056988271,0.002,4630.2,4628.5,0.55]
[1755056988573,0.108,4629.5,4628.9,0.108]
[1755056988768,0.5918,4630.2,4628.5,0.8062]
[1755056988769,0.5918,4630.2,4629.0,3.354]
[1755056988992,0.108,4629.1,4629.0,3.354]
[1755056989499,0.108,4629.1,4629.0,3.6102]
[1755056989669,0.002,4630.2,4629.0,3.6102]
[1755056989864,0.108,4629.3,4629.1,0.2562]
[1755056990068,0.002,4630.2,4629.2,0.2562]
[1755056990270,0.108,4629.7,4629.2,0.2562]
[1755056990576,0.108,4629.7,4629.0,3.462]
[1755056990577,0.108,4629.7,4629.3,0.2562]
[1755056990782,0.108,4629.7,4629.4,0.2562]
[1755056990990,0.108,4629.7,4629.5,3.6092]
[1755056991285,0.108,4630.1,4629.5,3.6092]
[1755056991688,0.108,4630.1,4629.5,0.2562]
[1755056991902,0.108,4630.1,4629.6,3.353]
[1755056992295,0.002,4630.2,4629.7,0.2562]
[1755056992483,0.002,4630.2,4629.7,0.3642]
[1755056992694,0.002,4630.2,4629.7,0.108]
[1755056992903,0.002,4630.2,4629.8,0.2562]
[1755056993509,0.002,4630.2,4629.9,3.353]
[1755056993807,0.002,4630.2,4630.0,3.353]
[1755056993976,0.002,4630.2,4629.7,0.108]
[1755056994181,0.002,4630.2,4630.1,3.353]
[1755056994381,0.002,4630.2,4630.1,3.903]
[1755056994716,0.002,4630.2,4630.1,4.2672]
[1755056998290,0.002,4630.2,4630.1,0.658]
[1755056998635,0.002,4630.3,4630.2,0.55]
[1755056998835,0.002,4630.3,4630.2,3.65723223]
[1755056999148,0.002,4630.3,4630.2,1.42041425]
[1755056999435,0.002,4630.3,4630.2,3.58014817]
[1755056999639,0.002,4630.6,4630.2,3.58014817]
[1755056999640,0.002,4630.6,4630.3,2.70968727]
[1755056999809,0.002,4630.6,4630.3,3.91338558]
[1755057000450,0.002,4630.6,4630.4,3.05235941]
[1755057000646,0.002,4630.9,4630.8,0.55]
[1755057000924,0.002,4631.5,4630.9,2.70940745]
[1755057001124,0.002,4631.5,4630.9,7.4436125]
[1755057002226,0.002,4631.5,4631.0,0.55]
[1755057002439,0.002,4632.5,4631.7,2.70903447]
[1755057002644,0.002,4632.5,4631.8,0.55]
[1755057002805,0.002,4632.5,4631.8,1.07769547]
[1755057003000,0.002,4632.5,4631.9,0.8062]
[1755057003600,0.002,4632.5,4631.9,1.84915576]
[1755057003845,0.002,4632.5,4631.9,1.95715576]
[1755057004832,0.002,4632.5,4632.0,1.38284292]
[1755057005015,0.002,4632.9,4632.2,0.55]
[1755057005217,0.002,4632.9,4632.5,0.55]
[1755057005414,0.002,4632.9,4632.8,5.833]
[1755057005703,0.002,4632.9,4632.8,6.66584292]
[1755057005907,0.002,4632.9,4632.8,6.92204292]
[1755057006104,0.002,4633.7,4632.9,1.38284292]
[1755057006431,0.5733,4636.0,4632.9,1.38284292]
[1755057006432,0.5733,4636.0,4633.1,0.55]
[1755057006611,0.6813,4636.3,4634.1,0.55]
[1755057006814,0.452,4636.2,4635.7,0.108]
[1755057007022,0.452,4636.2,4635.8,3.35]
[1755057007226,0.108,4636.3,4635.8,3.35]
[1755057007424,1.0253,4636.1,4635.8,3.35]
[1755057007717,0.108,4635.9,4633.5,0.55]
[1755057007921,1.13863,4635.8,4634.8,0.108]
[1755057008110,0.108,4635.5,4634.8,0.108]
[1755057008634,1.0253,4635.4,4634.8,0.108]
[1755057008823,1.0253,4635.3,4634.9,3.349]
[1755057009028,1.0253,4635.2,4634.9,3.349]
[1755057009213,1.0253,4635.1,4634.9,3.349]
[1755057009579,1.0253,4635.0,4634.9,3.349]
[1755057010517,0.5733,4635.5,4635.0,0.55]
[1755057010724,0.56,4636.3,4635.1,0.83284292]
[1755057010933,0.56,4636.3,4635.5,0.55]
[1755057011138,0.56,4636.3,4635.7,0.658]
[1755057011335,0.56,4636.3,4635.8,3.349]
[1755057011632,1.0253,4636.2,4635.8,3.349]
[1755057011834,0.108,4636.3,4635.8,3.349]
[1755057012035,1.0253,4636.2,4635.8,3.349]
[1755057012235,0.5733,4636.2,4635.8,3.349]
[1755057012636,0.108,4636.3,4635.8,3.349]
[1755057012838,0.5733,4636.1,4635.8,3.349]
[1755057013039,0.5733,4636.7,4635.9,0.55]
[1755057013213,0.108,4636.6,4635.9,0.55]
[1755057014223,0.452,4636.6,4635.9,0.55]
[1755057014443,0.5733,4636.5,4636.2,0.108]
[1755057014624,0.5733,4636.5,4636.3,3.349]
[1755057014814,0.5733,4636.4,4636.3,3.349]
[1755057015234,1.0253,4636.4,4636.3,3.349]
[1755057015543,1.0253,4636.4,4636.3,8.521]
[1755057015841,1.13863,4636.4,4636.3,8.521]
[1755057016043,0.5733,4637.2,4636.3,8.629]
[1755057016361,0.5733,4637.2,4636.4,0.55]
[1755057016723,0.454,4637.1,4636.4,0.55]
[1755057017062,0.562,4637.1,4636.4,0.658]
[1755057017360,0.002,4637.1,4636.4,0.55]
[1755057017515,0.002,4637.1,4636.9,0.108]
[1755057017714,0.002,4637.1,4637.0,3.348]
[1755057018156,0.002,4637.1,4637.0,3.898]
[1755057018528,0.002,4637.1,4637.0,4.006]
[1755057019418,0.002,4637.1,4637.0,4.12862983]
[1755057019621,0.002,4637.1,4637.0,4.70192983]
[1755057020349,0.002,4637.1,4637.0,4.0293]
[1755057020547,0.002,4637.1,4637.0,4.32705212]
[1755057020752,0.002,4637.1,4637.0,4.70413365]
[1755057021157,0.002,4637.1,4637.0,5.79117657]
[1755057021339,0.002,4637.1,4637.0,6.06267204]
[1755057022081,0.002,4637.1,4637.0,8.38058686]
[1755057022473,0.002,4637.1,4637.0,6.22402012]
[1755057022635,0.002,4637.1,4637.0,5.3911772]
[1755057023053,0.002,4637.1,4637.0,8.38058686]
[1755057024762,0.002,4638.1,4637.1,0.55]
[1755057025063,0.002,4638.1,4638.0,2.81410176]
[1755057025264,0.002,4638.1,4638.0,7.27144015]
[1755057025464,0.002,4638.1,4638.0,15.12844015]
[1755057025832,0.002,4638.1,4638.0,15.77439015]
[1755057026166,0.002,4638.1,4638.0,15.66639015]
[1755057027163,0.002,4638.1,4638.0,12.97839015]
[1755057027745,0.002,4638.1,4638.0,5.65328839]
[1755057027939,0.002,4638.1,4638.0,5.33223627]
[1755057028249,0.002,4638.1,4638.0,4.54895]
[1755057028482,0.002,4638.1,4638.0,7.79209468]
[1755057028656,0.002,4638.1,4638.0,8.06359015]
[1755057029171,0.002,4638.1,4638.0,7.80939015]
[1755057029377,0.002,4638.1,4638.0,4.82044547]
[1755057029859,0.002,4638.1,4638.0,3.99895]
[1755057030060,0.002,4638.1,4638.0,5.0607408]
[1755057030503,0.002,4638.1,4638.0,7.21684256]
[1755057030700,0.002,4638.1,4638.0,7.79209468]
[1755057030993,0.002,4638.1,4638.0,8.06359015]
[1755057031607,0.002,4638.5,4638.4,2.70591583]
[1755057031780,0.002,4638.5,4638.4,7.16225422]
[1755057032143,0.002,4638.5,4638.4,7.41645422]
[1755057032795,0.002,4638.5,4638.4,8.06232022]
[1755057033695,0.002,4638.5,4638.4,7.80812022]
[1755057034201,0.002,4638.5,4638.4,6.9752773]
[1755057034385,0.002,4638.5,4638.4,3.997866]
[1755057034898,1.0094,4638.5,4638.4,3.997866]
[1755057035288,0.002,4638.5,4638.4,6.683866]
[1755057035489,0.002,4638.5,4638.4,12.399866]
[1755057035692,0.002,4638.5,4638.4,14.92873255]
[1755057035899,0.002,4638.5,4638.4,15.20022802]
[1755057036101,0.002,4638.5,4638.4,17.79228014]
[1755057036303,0.002,4638.5,4638.4,15.77548014]
[1755057036502,43.22008853,4639.2,4638.4,5.98346431]
[1755057036809,43.22008853,4639.2,4639.1,2.81359052]
[1755057037012,42.03719073,4639.2,4639.1,8.28559336]
[1755057037336,42.03719073,4639.2,4639.1,9.02718883]
[1755057037618,41.48719073,4639.2,4639.1,9.02718883]
[1755057038237,41.48719073,4639.2,4639.1,8.81128883]
[1755057038548,0.5,4641.6,4639.1,8.81128883]
[1755057038549,0.42281322,4641.6,4641.5,2.70447592]
[1755057038834,0.15646,4642.6,4642.5,2.70401184]
[1755057039132,0.15646,4642.6,4642.5,6.06001184]
[1755057039423,0.15646,4642.6,4642.5,0.71052754]
[1755057039582,0.15646,4642.6,4642.5,4.07852754]
[1755057040117,0.15646,4642.6,4642.5,6.48673938]
[1755057040420,89.77537533,4643.0,4642.5,3.52852754]
[1755057040719,77.86343266,4643.0,4642.8,2.15387157]
[1755057040881,0.02743617,4644.8,4643.2,2.15368711]
[1755057041077,0.02743617,4644.8,4643.2,4.03100284]
[1755057041288,0.02743617,4644.8,4643.2,4.28520284]
[1755057041526,0.02743617,4644.8,4643.2,5.54845345]
[1755057041918,0.02743617,4644.8,4643.2,22.03094545]
[1755057042137,0.02743617,4644.8,4643.4,1.01402089]
[1755057042425,4.29123617,4645.0,4643.8,1.05906293]
[1755057042711,4.72613617,4645.0,4643.9,3.91795335]
[1755057042911,0.5725,4644.9,4644.0,3.658]
[1755057043114,0.5725,4644.9,4644.1,0.55]
[1755057043484,0.4349,4644.8,4644.1,0.55]
[1755057043682,0.4349,4644.8,4642.5,0.16052754]
[1755057043683,0.002,4643.6,4642.5,0.16052754]
[1755057043907,0.5725,4643.5,4642.6,3.66]
[1755057044317,0.002,4643.6,4642.6,3.66]
[1755057044494,0.002,4643.6,4643.0,1.613293]
[1755057044825,0.002,4643.6,4643.2,0.55]
[1755057045012,0.002,4643.6,4643.4,0.55]
[1755057045212,0.002,4643.6,4643.5,4.215]
[1755057045520,4.29123617,4645.0,4643.7,0.55]
[1755057045727,0.19602127,4645.8,4643.9,0.55]
[1755057045886,0.19602127,4645.8,4645.7,6.76269209]
[1755057046087,0.19602127,4645.8,4645.7,9.378]
[1755057046387,0.5725,4648.8,4645.9,1.07907871]
[1755057046592,0.5725,4648.8,4646.2,0.55]
[1755057046791,0.21,4649.0,4646.4,0.55]
[1755057046990,0.21,4649.0,4646.7,1.61001866]
[1755057047219,87.1644144,4646.9,4646.8,10.75354417]
[1755057047418,82.56966816,4646.9,4646.8,4.20984937]
[1755057047764,82.32016816,4646.9,4646.8,5.82201859]
[1755057047963,82.32016816,4646.9,4646.8,3.67]
[1755057048661,82.89266816,4646.9,4646.8,3.67]
[1755057048833,82.89266816,4646.9,4646.8,3.778]
[1755057049154,82.32016816,4646.9,4646.8,4.328]
[1755057049319,82.32016816,4646.9,4646.8,6.48001859]
[1755057049519,65.84489868,4646.9,4646.8,0.658]
[1755057049721,65.84489868,4646.9,4646.8,4.235]
[1755057049956,65.84489868,4646.9,4646.8,5.23842915]
[1755057050131,65.84489868,4646.9,4646.8,6.26688695]
[1755057050335,51.39396339,4646.9,4646.8,7.39044774]
[1755057050538,51.39396339,4646.9,4646.8,5.46182915]
[1755057050741,51.39396339,4646.9,4646.8,7.90484551]
[1755057050954,51.39396339,4646.9,4646.8,5.75282692]
[1755057051522,51.39396339,4646.9,4646.8,5.52942692]
[1755057051950,51.39396339,4646.9,4646.8,5.23842915]
[1755057052162,51.39396339,4646.9,4646.7,0.644564]
[1755057052163,52.40136339,4646.9,4646.7,0.644564]
[1755057052349,1.0074,4646.8,4646.7,0.644564]
[1755057052657,1.0074,4646.8,4646.7,4.324564]
[1755057053359,51.39396339,4646.9,4646.7,4.96544937]
[1755057053567,51.39396339,4646.9,4646.7,1.28544937]
[1755057053719,1.0074,4646.8,4646.7,0.644564]
[1755057054068,3.21395568,4646.8,4645.9,0.12344174]
[1755057054274,3.21395568,4646.8,4641.6,1.02233937]
[1755057054275,1.0074,4646.7,4642.5,0.2234]
[1755057054575,1.0074,4646.6,4645.0,0.645064]
[1755057054755,2.20655568,4646.8,4645.1,1.809]
[1755057054756,0.55,4646.4,4645.1,1.809]
[1755057054958,0.55,4646.4,4645.2,3.689]
[1755057054959,0.55,4646.2,4645.2,3.689]
[1755057055174,0.55,4646.0,4643.4,0.645301]
[1755057055373,0.55,4645.8,4643.5,7.84]
[1755057055668,0.55,4645.6,4643.5,7.84]
[1755057055868,0.55,4645.4,4643.5,7.84]
[1755057056049,0.55,4645.2,4643.5,7.84]
[1755057056242,0.55,4645.2,4643.6,3.686]
[1755057056446,0.55,4645.0,4643.5,2.682]
[1755057056767,0.55,4644.8,4643.6,8.843]
[1755057057138,0.55,4644.6,4643.7,8.849]
[1755057057479,16.53920315,4645.5,4643.5,2.682]
[1755057057480,0.55,4644.4,4643.8,5.158]
[1755057057780,0.55,4644.2,4642.4,0.12571915]
[1755057058072,0.55,4644.0,4639.1,0.4604]
[1755057058243,16.53920315,4644.5,4639.1,0.4604]
[1755057058244,0.55,4643.8,4640.6,0.645444]
[1755057058457,0.55,4644.4,4639.4,2.15540747]
[1755057058645,0.55,4643.6,4639.6,1.0589259]
[1755057058966,0.55,4643.4,4639.7,4.1514]
[1755057059172,1.0074,4643.5,4639.7,4.1514]
[1755057059173,1.0074,4643.3,4639.7,4.1514]
[1755057059368,16.53920315,4645.5,4639.9,0.55]
[1755057059369,1.5559,4643.2,4639.9,0.55]
[1755057059568,1.5559,4643.2,4641.3,0.55]
[1755057059874,1.5559,4643.1,4641.4,3.691]
[1755057060072,0.108,4642.7,4641.5,3.691]
[1755057060374,0.55,4643.7,4641.6,3.698]
[1755057060375,1.5559,4642.6,4641.6,3.698]
[1755057060572,1.5559,4642.5,4641.7,3.697]
[1755057060740,1.5559,4642.4,4641.7,3.697]
[1755057060933,1.5559,4642.3,4641.7,3.697]
[1755057061178,1.5559,4642.2,4641.8,3.697]
[1755057061375,1.5559,4642.1,4641.9,3.697]
[1755057061540,1.5559,4642.0,4641.1,0.108]
[1755057061744,0.108,4641.7,4641.2,3.697]
[1755057062080,1.5559,4641.6,4641.3,3.696]
[1755057062370,1.5559,4641.5,4640.9,0.108]
[1755057062678,1.5559,4641.4,4641.0,3.695]
[1755057062876,16.53920315,4643.9,4639.6,0.645692]
[1755057062877,1.5559,4641.3,4641.1,3.695]
[1755057063051,1.5559,4641.2,4641.1,3.695]
[1755057063251,1.6639,4641.2,4641.1,3.695]
[1755057063685,1.1219,4641.9,4641.1,3.803]
[1755057063882,0.434,4642.2,4641.1,3.803]
[1755057064058,0.434,4642.2,4641.6,0.108]
[1755057064372,1.1219,4642.1,4641.6,0.108]
[1755057064540,0.108,4641.9,4641.7,3.704]
[1755057064744,0.108,4641.9,4641.2,0.108]
[1755057064745,0.108,4641.9,4641.8,3.179]
[1755057064976,0.108,4641.9,4641.2,0.108]
[1755057065277,0.108,4641.9,4639.9,0.001]
[1755057065278,0.55,4641.7,4639.9,0.001]
[1755057065462,0.55,4641.5,4641.3,5.161]
[1755057065647,2.1059,4641.4,4641.3,5.161]
[1755057066762,2.1059,4641.4,4641.3,8.859]
[1755057067180,0.55,4641.3,4639.9,0.001]
[1755057067360,2.1059,4641.3,4640.0,8.859]
[1755057067566,2.25369289,4643.2,4640.1,8.857]
[1755057067567,0.55,4641.1,4640.1,8.857]
[1755057067880,2.70373541,4643.1,4640.1,8.857]
[1755057067881,0.55,4640.9,4640.2,3.695]
[1755057068077,0.55,4640.7,4640.3,8.856]
[1755057068378,0.55,4640.5,4640.3,8.856]
[1755057068676,2.1059,4640.4,4640.3,8.856]
[1755057068877,1.5559,4640.4,4640.3,8.856]
[1755057069053,2.1059,4640.4,4640.3,5.162]
[1755057069253,0.55,4641.1,4639.9,0.001]
[1755057069456,0.55,4641.1,4640.0,8.854]
[1755057069656,1.5559,4640.3,4640.0,8.854]
[1755057069901,1.1219,4641.0,4640.0,8.854]
[1755057070092,0.15559,4640.9,4640.0,8.854]
[1755057070290,1.1219,4641.0,4640.0,8.854]
[1755057070602,1.5559,4640.8,4640.0,8.854]
[1755057070816,2.1059,4640.7,4640.0,5.162]
[1755057070995,1.1219,4640.7,4640.1,3.691]
[1755057071383,16.70194236,4643.8,4640.1,3.691]
[1755057071384,1.1219,4641.3,4640.1,3.691]
[1755057071607,0.58959,4641.2,4640.0,5.162]
[1755057071801,0.58959,4641.2,4640.1,3.693]
[1755057072006,2.1059,4641.1,4640.0,5.162]
[1755057072206,1.5559,4641.0,4640.2,3.693]
[1755057072410,0.55,4640.8,4640.2,3.693]
[1755057072882,0.55,4640.6,4640.3,3.693]
[1755057073314,0.55,4640.4,4640.3,3.693]
[1755057073520,1.5559,4640.4,4640.3,3.693]
[1755057073737,2.1059,4640.4,4640.3,3.693]
[1755057073940,0.55,4640.3,4640.0,5.162]
[1755057074092,0.76059,4640.3,4640.1,3.69]
[1755057074292,2.1059,4640.2,4640.1,3.69]
[1755057074520,2.1059,4640.2,4640.1,3.687]
[1755057074904,0.55,4640.1,4640.0,5.162]
[1755057075096,2.2139,4640.1,4640.0,8.848]
[1755057075292,2.43529,4640.1,4640.0,8.848]
[1755057075734,2.43529,4640.1,4640.0,5.162]
[1755057076028,2.43529,4640.1,4637.9,0.108]
[1755057076029,0.55,4640.0,4638.6,5.164]
[1755057076202,0.55,4640.0,4638.4,5.164]
[1755057076203,0.55,4639.3,4638.4,5.164]
[1755057076415,0.1,4640.0,4637.1,0.001]
[1755057076416,0.55,4639.1,4637.1,0.001]
[1755057076600,0.55,4638.7,4637.2,5.164]
[1755057076799,2.70587251,4638.5,4637.2,5.164]
[1755057077131,0.55,4638.3,4637.2,5.164]
[1755057077309,2.70606822,4638.1,4637.2,5.164]
[1755057077507,0.55,4637.9,4637.3,3.685]
[1755057077708,1.5559,4637.8,4637.3,3.685]
[1755057077906,2.582315,4638.0,4637.1,0.001]
[1755057077907,2.1059,4637.7,4637.1,0.001]
[1755057079022,0.55,4638.2,4637.1,0.001]
[1755057079224,0.55,4638.2,4637.2,3.68781244]
[1755057079426,1.1219,4638.3,4637.2,3.686]
[1755057079801,1.1219,4638.3,4637.3,3.685]
[1755057080002,0.55,4638.2,4637.3,3.685]
[1755057080202,0.55,4638.2,4637.1,0.001]
[1755057080434,0.76059,4638.2,4637.2,2.292]
[1755057080736,0.55,4638.2,4637.2,2.292]
[1755057081117,0.22139,4640.1,4637.2,2.292]
[1755057081118,0.434,4639.1,4637.2,2.292]
[1755057081312,1.1219,4639.3,4637.3,1.5867]
[1755057081707,0.434,4639.2,4637.3,0.4342]
[1755057082216,0.55,4639.0,4637.2,2.292]
[1755057082409,0.76059,4639.0,4637.2,2.292]
[1755057083056,0.55,4638.8,4637.2,2.292]
[1755057083345,0.76059,4639.0,4637.1,0.001]
[1755057083346,0.55,4638.6,4637.3,3.68]
[1755057083655,0.55,4638.0,4637.4,3.678]
[1755057084026,0.55,4638.2,4637.4,3.678]
[1755057084208,0.55,4637.8,4637.4,3.678]
[1755057084409,0.55,4637.6,4637.4,3.678]
[1755057084625,1.6719,4637.5,4637.4,3.678]
[1755057085312,0.55,4637.5,4637.4,8.845]
[1755057086515,2.15521886,4639.9,4637.4,9.2792]
[1755057086708,0.108,4637.5,4637.4,9.2792]
[1755057086948,0.108,4637.5,4637.4,8.845]
[1755057087631,1.1219,4640.0,4637.4,9.2792]
[1755057087820,1.1219,4639.7,4637.4,10.4317]
[1755057088142,1.1219,4639.7,4637.5,0.4342]
[1755057088345,0.002,4640.3,4637.5,1.5867]
[1755057088558,1.1219,4640.1,4637.5,1.5867]
[1755057088756,1.1219,4640.1,4637.6,0.4342]
[1755057088933,0.11239,4640.0,4637.6,0.4342]
[1755057089130,0.55,4639.9,4637.6,0.4342]
[1755057089733,0.9895,4639.9,4637.6,0.4342]
[1755057090354,1.1219,4640.1,4637.6,0.4342]
[1755057090355,1.1219,4640.1,4637.7,1.083]
[1755057090535,0.55,4640.0,4637.7,1.083]
[1755057090736,0.55,4640.0,4637.8,0.4727]
[1755057091050,0.55,4640.0,4637.9,1.083]
[1755057091251,0.55,4640.0,4638.0,0.4727]
[1755057092052,0.002,4640.3,4638.1,1.083]
[1755057092446,0.002,4640.3,4638.2,0.4727]
[1755057092764,1.7249,4640.2,4638.3,3.664]
[1755057092950,0.55,4640.0,4638.3,3.664]
[1755057093255,0.21864,4640.3,4638.3,3.664]
[1755057093256,0.55,4639.8,4638.3,3.664]
[1755057093454,0.55,4639.8,4637.5,0.4727]
[1755057093455,0.55,4639.6,4637.5,0.4727]
[1755057093657,0.55,4639.4,4637.4,5.167]
[1755057093858,0.55,4639.2,4637.5,3.662]
[1755057094229,0.55,4639.0,4637.5,3.662]
[1755057094935,1.6144,4638.9,4637.6,5.168]
[1755057095140,0.27144,4639.3,4637.1,0.001]
[1755057095141,0.55,4638.0,4637.1,0.001]
[1755057095338,0.55,4637.8,4637.1,0.001]
[1755057095554,0.84060094,4637.8,4637.2,5.168]
[1755057095844,0.55,4637.8,4637.2,8.828]
[1755057096633,0.55,4637.8,4637.3,8.828]
[1755057096854,0.55,4637.6,4637.3,8.828]
[1755057097370,0.55,4638.3,4637.3,8.828]
[1755057097661,0.108,4637.4,4637.3,9.3007]
[1755057098164,0.658,4637.4,4637.3,8.823]
[1755057098955,0.658,4637.4,4637.3,9.2957]
[1755057099152,0.108,4637.4,4637.3,9.2957]
[1755057099779,0.108,4637.4,4637.3,8.823]
[1755057100348,0.108,4637.4,4637.3,5.168]
[1755057100549,0.108,4637.4,4637.3,8.819]
[1755057101166,0.108,4637.4,4637.3,8.816]
[1755057101673,0.108,4637.4,4637.3,9.2887]
[1755057102033,0.108,4637.4,4637.3,5.6407]
[1755057102230,0.108,4637.4,4637.3,9.2877]
[1755057102668,0.108,4637.4,4637.3,8.815]
[1755057103236,0.108,4637.4,4637.3,5.168]
[1755057103436,0.108,4637.4,4637.3,8.811]
[1755057103864,0.108,4637.4,4637.3,5.168]
[1755057104178,0.108,4637.4,4637.3,8.81]
[1755057104179,1.8329,4637.4,4637.3,8.81]
[1755057104536,0.46294213,4638.5,4637.3,8.81]
[1755057104537,1.7249,4638.4,4637.3,8.809]
[1755057104743,0.55,4638.2,4637.4,3.648]
[1755057104968,0.55,4638.0,4637.4,3.648]
[1755057105270,0.55,4637.8,4637.4,3.648]
[1755057105469,0.55,4637.6,4637.3,5.169]
[1755057105846,0.55,4638.3,4637.4,3.646]
[1755057106049,0.55,4638.1,4637.4,3.646]
[1755057106373,0.4631244,4638.8,4637.4,3.646]
[1755057106374,0.55,4637.9,4637.4,3.646]
[1755057106554,1.1749,4638.9,4637.5,0.4727]
[1755057106740,0.20099961,4638.8,4637.5,0.4727]
[1755057106943,0.55,4638.6,4637.5,0.4727]
[1755057107166,0.55,4638.4,4637.5,0.4727]
[1755057107470,0.55,4638.2,4637.5,0.4727]
[1755057107782,0.55,4638.8,4637.5,0.4727]
[1755057107948,0.55,4638.6,4637.5,0.4727]
[1755057108149,0.55,4638.4,4637.5,0.4727]
[1755057108355,0.20102038,4638.5,4637.5,0.4727]
[1755057108356,0.55,4638.2,4637.5,0.4727]
[1755057108549,0.55,4638.0,4637.5,0.4727]
[1755057108752,0.20102038,4637.9,4637.4,4.729]
[1755057108952,0.55,4637.7,4637.3,5.169]
[1755057109152,16.28410809,4639.3,4637.3,5.169]
[1755057109153,0.55,4637.5,4637.3,5.169]
[1755057109368,0.55,4637.5,4637.4,3.636]
[1755057109672,0.55,4637.5,4637.3,5.169]
[1755057109673,0.7511021,4637.5,4637.3,5.169]
[1755057109844,0.7511021,4637.4,4637.3,5.169]
[1755057110045,2.36551147,4637.4,4637.3,8.803]
[1755057110240,2.36551147,4637.4,4637.3,0.001]
[1755057110557,2.36551147,4637.4,4637.1,0.001]
[1755057110558,0.55,4637.3,4637.1,0.001]
[1755057110764,0.75111147,4637.2,4637.1,0.001]
[1755057110939,2.36551147,4637.2,4637.1,0.001]
[1755057111661,4.5219852,4637.2,4637.1,3.632]
[1755057111869,0.55,4636.6,4635.9,0.001]
[1755057112083,0.55,4636.4,4635.9,5.17]
[1755057112387,0.55,4636.2,4636.0,5.169]
[1755057112588,0.55,4636.0,4634.1,1.5557]
[1755057112744,0.75095977,4635.9,4634.1,1.5557]
[1755057112944,0.75095977,4635.9,4635.8,5.17]
[1755057113145,0.55,4635.8,4634.1,1.083]
[1755057113340,0.27067238,4636.5,4634.9,3.629]
[1755057113341,0.55,4635.6,4634.9,3.629]
[1755057113753,0.55,4636.3,4634.9,3.629]
[1755057113991,0.55,4636.1,4634.9,3.629]
[1755057114146,1.1749,4636.4,4634.9,3.629]
[1755057114346,0.55,4636.3,4635.0,0.4727]
[1755057114811,0.108,4635.1,4635.0,0.4727]
[1755057115183,0.108,4635.3,4635.0,0.4727]
[1755057115355,0.108,4635.3,4635.1,6.252]
[1755057115678,0.108,4635.3,4635.2,1.5557]
[1755057116042,0.108,4635.3,4635.2,5.1817]
[1755057116241,0.108,4635.3,4635.2,4.0967]
[1755057116444,0.108,4635.3,4635.2,5.1797]
[1755057116883,0.108,4635.3,4635.1,5.169]
[1755057117049,0.108,4635.3,4635.2,3.623]
[1755057117678,0.108,4635.3,4635.2,3.621]
[1755057118082,0.108,4635.3,4635.2,0.4727]
[1755057118247,0.108,4635.3,4635.2,5.1747]
[1755057119161,0.108,4635.3,4635.1,5.169]
[1755057119365,0.108,4635.3,4635.2,3.622]
[1755057119896,0.108,4635.3,4635.2,3.62]
[1755057120064,0.108,4635.3,4635.2,3.618]
[1755057120398,0.108,4635.3,4635.1,5.169]
[1755057120399,0.55,4635.2,4635.1,5.169]
[1755057120604,0.108,4635.3,4635.1,8.787]
[1755057120898,0.16313726,4638.5,4635.1,8.787]
[1755057120899,0.108,4635.2,4635.1,8.787]
[1755057121260,0.108,4635.8,4635.1,9.2583]
[1755057121471,0.108,4635.8,4635.2,1.6126]